Workbook

Sheet Statistical Report 7-16
A1: YVEDDI - Monthly Leadership Statistical Report
A3: Report Month: July 2016
A5: Program | B5: Services Provided | C5: Annual Fiscal Year Goal | D5: Report Month's Totals | E5: Year to Date | F5: FY 17 YTD
A6: Community Services | B6: Clients Enrolled - Davie | F6: 24
B7: Clients Enrolled - Stokes | F7: 42
B8: Clients Enrolled - Surry | F8: 42
B9: Clients Enrolled - Yadkin | F9: 19
B10: TOTALS | C10: =SUM(C6:C9) -> 0 | D10: 0 | E10: 0 | F10: =SUM(F6:F9) -> 127
A12: Divorce Filing Fee | B12: Clients Enrolled - Stokes | F12: 36
B13: Clients Enrolled - Surry | F13: 11
B14: Clients Enrolled - Yadkin | F14: 42
B15: TOTALS | C15: =SUM(C12:C14) -> 0 | D15: 0 | E15: 0 | F15: =SUM(F12:F14) -> 89
A17: Domestic Violence | B17: Clients Served - Stokes | F17: 653
B18: Clients Served - Surry | F18: 897
B19: Clients Served - Yadkin | F19: 567
B20: TOTALS | C20: =SUM(C17:C19) -> 0 | D20: =SUM(D17:D19) -> 0 | E20: =SUM(E17:E19) -> 0 | F20: =SUM(F17:F19) -> 2117
A22: Sexual Assault | B22: Clients Served - Stokes | F22: 3
B23: Clients Served - Surry | F23: 8
B24: Clients Served - Yadkin | F24: 33
B25: TOTALS | C25: =SUM(C22:C24) -> 0 | D25: =SUM(D22:D24) -> 0 | E25: =SUM(E22:E24) -> 0 | F25: =SUM(F22:F24) -> 44
A27: Elderly Services | B27: Homebound Meals - Surry | F27: 21128
B28: Homebound Meals - Yadkin | F28: 18890
B29: TOTALS | C29: =SUM(C27:C28) -> 0 | D29: 0 | E29: 0 | F29: =SUM(F27:F28) -> 40018
B30: Congregate Meals - Surry | F30: 11656
B31: Congregate Meals - Yadkin | F31: 12315
B32: TOTALS | C32: =SUM(C30:C31) -> 0 | D32: 0 | E32: 0 | F32: =SUM(F30:F31) -> 23971
B33: Medical Transportation - Davie | F33: 714
B34: Medical Transportation - Surry | F34: 893
B35: Medical Transportation - Yadkin | F35: 195
B36: TOTALS | C36: =SUM(C33:C35) -> 0 | D36: 0 | E36: 0 | F36: =SUM(F33:F35) -> 1802
B37: General Transportation - Davie | F37: 6286
B38: General Transportation - Surry | F38: 3119
B39: General Transportation - Yadkin | F39: 676
B40: TOTALS | C40: =SUM(C37:C39) -> 0 | D40: 0 | E40: 0 | F40: =SUM(F37:F39) -> 10081
B41: Legal - Stokes | F41: 47
B42: Legal - Surry | F42: 106
B43: Legal - Yadkin | F43: 27
B44: TOTALS | C44: =SUM(C41:C43) -> 0 | D44: 0 | E44: 0 | F44: =SUM(F41:F43) -> 180
A46: Family Resource Center | B46: Clients Utilizing the FRC
A48: Head Start | B48: Children Served - Davie | F48: 63
B49: Children Served - Stokes | F49: 84
B50: Children Served - Surry | F50: 218
B51: Children Served - Yadkin | F51: 109
B52: TOTALS | C52: =SUM(C48:C51) -> 0 | D52: 0 | E52: 0 | F52: =SUM(F48:F51) -> 474
A54: Migrant Head Start | B54: Children Served - Surry | F54: 14
A55: FY: Feb 1 - Jan 31 | B55: Children Served - Yadkin | F55: 17
B56: TOTALS | C56: =SUM(C54:C55) -> 0 | D56: 0 | E56: 0 | F56: =SUM(F54:F55) -> 31
A58: Retired and Senior | B58: Hours Served - Surry | F58: 3103
A59: Volunteer Program | B59: Hours Served - Yadkin | F59: 1438
B60: TOTALS | C60: =SUM(C58:C59) -> 0 | D60: 0 | E60: 0 | F60: =SUM(F58:F59) -> 4541
B61: Number of Volunteers - Surry | F61: 46
A62: FY: Apr 1 - Mar 31 | B62: Number of Volunteers - Yadkin | F62: 40
B63: TOTALS | C63: =SUM(C61:C62) -> 0 | D63: 0 | E63: 0 | F63: =SUM(F61:F62) -> 86
B64: Number of Stations - Surry | F64: 10
B65: Number of Stations - Yadkin | F65: 6
B66: TOTALS | C66: =SUM(C64:C65) -> 0 | D66: 0 | E66: 0 | F66: =SUM(F64:F65) -> 16
A68: Pilot Mountain Senior Center | B68: Attendance | F68: 4080
A70: Surry County Senior Center | B70: Attendance | F70: 9404
A72: East Bend Senior Center | B72: Attendance | F72: 14484
A74: Yadkin County Senior Center | B74: Attendance | F74: 14887
A76: Yadkin Valley Senior Center | B76: Attendance | F76: 8625
A78: Transportation | B78: Number of Clients - Davie | F78: 317
B79: Number of Clients - Stokes | F79: 424
B80: Number of Clients - Surry | F80: 1076
B81: Number of Clients - Yadkin | F81: 727
B82: TOTALS | C82: =SUM(C78:C81) -> 0 | D82: 0 | E82: 0 | F82: =SUM(F78:F81) -> 2544
B83: Number Trips - Davie | F83: 47570
B84: Number Trips - Stokes | F84: 25274
B85: Number Trips - Surry | F85: 76018
B86: Number Trips - Yadkin | F86: 37188
B87: TOTALS | C87: =SUM(C83:C86) -> 0 | D87: 0 | E87: 0 | F87: =SUM(F83:F86) -> 186050
B88: ROAP Number Trips - Davie
B89: ROAP Number Trips - Stokes
B90: ROAP Number Trips - Surry
B91: ROAP Number Trips - Yadkin
B92: TOTALS | C92: =SUM(C88:C91) -> 0 | D92: 0 | E92: 0 | F92: =SUM(F88:F91) -> 0
A94: Weatherization | B94: Number of Homes - Davie | F94: 9
B95: Number of Homes - Stokes | F95: 12
B96: Number of Homes - Surry | F96: 24
B97: Number of Homes - Yadkin | F97: 10
B98: TOTALS | C98: =SUM(C94:C97) -> 0 | D98: 0 | E98: 0 | F98: =SUM(F94:F97) -> 55
B99: People Assisted - Davie | F99: 17
B100: People Assisted - Stokes | F100: 29
B101: People Assisted - Surry | F101: 60
B102: People Assisted - Yadkin | F102: 17
B103: TOTALS | C103: =SUM(C99:C102) -> 0 | D103: 0 | E103: 0 | F103: =SUM(F99:F102) -> 123
A104: Heating Air Repair and Replacement Program | B104: Heating Systems - Davie | F104: 6
B105: Heating Systems - Stokes | F105: 5
B106: Heating Systems - Surry | F106: 11
B107: Heating Systems - Yadkin | F107: 8
B108: TOTALS | C108: =SUM(C104:C107) -> 0 | D108: 0 | E108: 0 | F108: =SUM(F104:F107) -> 30
B109: People Assisted - Davie | F109: 16
B110: People Assisted - Stokes | F110: 18
B111: People Assisted - Surry | F111: 34
B112: People Assisted - Yadkin | F112: 10
B113: TOTALS | C113: =SUM(C109:C112) -> 0 | D113: 0 | E113: 0 | F113: =SUM(F109:F112) -> 78
A115: Duke Energy HHF | B115: Number of Homes - Davie | F115: 9
A116: Appliance Replacement | B116: Number of Homes - Stokes | F116: 10
B117: Number of Homes - Surry | F117: 10
B118: Number of Homes - Yadkin | F118: 11
B119: TOTALS | C119: =SUM(C115:C118) -> 0 | D119: 0 | E119: 0 | F119: =SUM(F115:F118) -> 40
B120: People Assisted - Davie | F120: 18
B121: People Assisted - Stokes | F121: 18
B122: People Assisted - Surry | F122: 18
B123: People Assisted - Yadkin | F123: 19
B124: TOTALS | C124: =SUM(C120:C123) -> 0 | D124: 0 | E124: 0 | F124: =SUM(F120:F123) -> 73
A126: Duke Energy HHF | B126: Number of Homes - Davie | F126: 9
A127: Health & Safety | B127: Number of Homes - Stokes | F127: 17
B128: Number of Homes - Surry | F128: 23
B129: Number of Homes - Yadkin | F129: 11
B130: TOTALS | C130: =SUM(C126:C129) -> 0 | D130: 0 | E130: 0 | F130: =SUM(F126:F129) -> 60
B131: People Assisted - Davie | F131: 18
B132: People Assisted - Stokes | F132: 35
B133: People Assisted - Surry | F133: 45
B134: People Assisted - Yadkin | F134: 18
B135: TOTALS | C135: =SUM(C131:C134) -> 0 | D135: 0 | E135: 0 | F135: =SUM(F131:F134) -> 116
A137: Duke Energy HHF | B137: Number of Homes - Davie | F137: 14
A138: HVAC | B138: Number of Homes - Stokes | F138: 18
B139: Number of Homes - Surry | F139: 28
B140: Number of Homes - Yadkin | F140: 25
B141: TOTALS | C141: =SUM(C137:C140) -> 0 | D141: 0 | E141: 0 | F141: =SUM(F137:F140) -> 85
B142: People Assisted - Davie | F142: 29
B143: People Assisted - Stokes | F143: 42
B144: People Assisted - Surry | F144: 50
B145: People Assisted - Yadkin | F145: 54
B146: TOTALS | C146: =SUM(C142:C145) -> 0 | D146: 0 | E146: 0 | F146: =SUM(F142:F145) -> 175
